Cogmind - Beta 9.5 --- EXPLORER MODE // 2020.04.12 @ 16:22:39 Player: K.Ioz Result: Destroyed by G-47 Trooper with Particle Gun Performance ------------- Evolutions (3) 1500 Regions Visited (10) 2000 Robots Destroyed (161) 805 Value Destroyed (5840) 5840 Prototype IDs (46) 920 Alien Tech Used (0) 0 Bonus (441) 441 TOTAL SCORE: 11506 Bonus ------- High Alert Combat Kills 81 Follower Combat Kills 90 Aligned with FarCom 300 Friendly Fire -30 Cogmind --------- Core Integrity 0/700 Matter 300/300 Energy 100/100 System Corruption 0% Temperature Cool (9) Movement Core (1100) Ox21 Location -7/Lower Caves Parts ------- > --- POWER (1) -------- (None) > --- PROPULSION (3) --- (None) > --- UTILITY (5) ------ High-capacity Storage Unit High-capacity Storage Unit Hacking Suite > --- WEAPON (5) ------- (None) > --- INVENTORY (20) --- Improved Deuterium Engine Improved Deuterium Engine Cryofiber Web Cooling System Disposable Heat Sink High-capacity Battery (400) High-capacity Matter Pod (200) Advanced Sensor Array Improved Signal Interpreter Advanced Signal Interpreter Long-range Terrain Scanner Improved Terrain Scan Processor Advanced Targeting Computer Shield Generator Heavy Plasma Cannon Assault Cannon Assault Cannon Advanced Assault Cannon Remote Datajack Peak State ------------ > --- POWER ------------ Reinforced Deuterium Engine > --- PROPULSION ------- Titanium Leg Titanium Leg Improved Titanium Leg > --- UTILITY ---------- Improved Cooling System High-capacity Storage Unit High-capacity Storage Unit Hacking Suite Trap Reconfigurator > --- WEAPON ----------- Heavy EM Pulse Gun Beam Cannon AWS/Autocannon > --- INVENTORY -------- Improved Deuterium Engine Titanium Leg Cryofiber Web Cooling System Disposable Heat Sink High-capacity Battery High-capacity Matter Pod Improved Sensor Array Advanced Signal Interpreter Long-range Terrain Scanner Improved Terrain Scan Processor Advanced Targeting Computer Shield Generator System Backup Module Heavy Particle Cannon Ion Cannon Heavy Assault Rifle Advanced Assault Cannon Rocket Launcher Remote Datajack [Rating: 70] Favorites ----------- Power Improved Ion Engine Engine Improved Ion Engine Power Core Nuclear Core Propulsion Titanium Leg Treads Improved Medium Treads Leg Titanium Leg Utility High-capacity Storage Unit Device Heat Sink Storage High-capacity Storage Unit Processor Modified TNC Hackware Hacking Suite Protection Layered Medium Armor Plating Weapon Beam Cannon Energy Gun Heavy EM Pulse Gun Energy Cannon Beam Cannon Ballistic Gun Assault Rifle Ballistic Cannon Light Cannon Launcher Rocket Array Special Weapon Remote Datajack Slashing Weapon Makeshift Axe Special Melee Weapon Datajack Build | -11 -10 -10 -9 -9 -9 -8 -8 -7 -7 -7 ------- Run | Scr Mat Min Mat Min Exi Min Mat Fac Low Low Slots Evolved 7 | . 1 . 2 . . . 2 2 . . Power . | . . . . . . . . . . . Propulsion 1 | . . . . . . . . 1 . . Utility 3 | . 1 . 1 . . . . 1 . . Weapon 3 | . . . 1 . . . 2 . . . Parts Attached 94 | 7 5 4 12 4 8 1 11 18 7 17 Power 7 | 1 . 1 . . . . 1 3 . 1 Engine 6 | 1 . 1 . . . . . 3 . 1 Core 1 | . . . . . . . 1 . . . Reactor . | . . . . . . . . . . . Propulsion 22 | 2 1 1 2 1 . . 4 4 1 6 Treads 4 | . . . . . . . . . . 4 Leg 18 | 2 1 1 2 1 . . 4 4 1 2 Wheel . | . . . . . . . . . . . Hover . | . . . . . . . . . . . Flight . | . . . . . . . . . . . Utility 22 | 2 2 1 2 1 4 1 3 2 2 2 Device 10 | . . 1 . 1 2 . 2 2 2 . Storage 5 | 1 2 . . . 2 . . . . . Processor 4 | 1 . . 2 . . 1 . . . . Hackware 2 | . . . . . . . 1 . . 1 Protection 1 | . . . . . . . . . . 1 Artifact . | . . . . . . . . . . . Weapon 43 | 2 2 1 8 2 4 . 3 9 4 8 Energy Gun 6 | 1 1 . . . . . 1 2 1 . Energy Cannon 11 | . . 1 2 1 1 . 1 4 1 . Ballistic Gun 6 | 1 1 . 2 1 1 . . . . . Ballistic Cannon 8 | . . . 3 . . . 1 1 1 2 Launcher 2 | . . . . . . . . 2 . . Special Weapon 2 | . . . 1 . . . . . 1 . Impact Weapon . | . . . . . . . . . . . Slashing Weapon 6 | . . . . . . . . . . 6 Piercing Weapon . | . . . . . . . . . . . Special Melee Weapon 2 | . . . . . 2 . . . . . Unidentified Prototypes 2 | . . . . 1 . . . 1 . . Parts Lost 31 | . 1 1 1 2 . . 1 2 6 17 Power 2 | . . . . . . . . . . 2 Propulsion 9 | . . . 1 . . . . . 2 6 Utility 2 | . . . . . . . . . . 2 Weapon 18 | . 1 1 . 2 . . 1 2 4 7 Highest Loss Streak 11 | . 1 1 1 2 . . 1 1 5 11 Average Slot Usage (%) 90 | . 93 100 97 93 99 100 82 88 90 74 Engine 6 | . 12 12 10 10 10 10 . 6 7 4 Core 1 | . . . . . . . 7 . . . Leg 18 | . 25 25 19 20 20 20 16 20 18 5 Device 11 | . . 7 10 13 20 10 8 14 13 4 Storage 17 | . 18 25 20 20 20 20 16 14 14 14 Processor 3 | . 12 4 8 . . 9 5 . . . Hackware 3 | . . . . . . . 2 7 7 8 Energy Gun 3 | . 12 2 . . . . 3 6 4 . Energy Cannon 6 | . . 9 9 9 1 10 7 8 8 . Ballistic Gun 4 | . 12 12 10 9 9 10 . . . . Ballistic Cannon 8 | . . . 9 10 10 10 12 6 9 7 Special Melee Weapon 1 | . . . . . 9 . . . . . Naked Turns . | . . . . . . . . . . . Heaviest Build 148 | 17 56 62 65 66 81 81 139 148 111 103 Greatest Support 88 | 20 20 20 20 20 20 20 34 54 54 88 Greatest Overweight (x) 22 | . 2 3 6 3 4 4 6 4 5 22 Average Overweight (x) 2 | . . 2 3 3 3 3 4 1 2 1 Largest Inventory Capacity 20 | 8 18 18 18 18 20 20 20 20 20 20 Average Capacity 18 | 6 12 18 18 18 18 20 20 20 20 20 Most Carried 20 | 5 15 18 17 15 20 20 20 20 20 20 Average Carried 17 | 1 8 16 14 13 17 20 19 19 17 17 Final Capacity 20 | 8 18 18 18 18 20 20 20 20 20 20 Final Carried 20 | 5 15 17 15 14 20 20 20 20 16 19 Class Distribution -------------------- 49% | Hacker-Mutant 32% | Hacker-Gunner 17% | Hacker-Skirmisher Dominant Class ---------------- Hacker-Mutant | -10/Materials Hacker-Mutant | -10/Mines Hacker-Gunner | -9/Materials Hacker-Gunner | -9/Mines Hacker-Mutant | -9/Exiles Hacker-Mutant | -8/Mines Hacker-Skirmisher | -8/Materials Hacker-Gunner | -7/Factory Hacker-Gunner | -7/Lower Caves Hacker-Mutant | -7/Lower Caves Resources | -11 -10 -10 -9 -9 -9 -8 -8 -7 -7 -7 ----------- Run | Scr Mat Min Mat Min Exi Min Mat Fac Low Low Matter Collected 2789 | 251 278 99 231 167 70 90 189 404 362 648 Remotely . | . . . . . . . . . . . Salvage Created 4717 | . 528 264 374 110 . . 593 1955 472 421 Parts 293 | . 33 23 34 1 . . 52 110 20 20 Haulers Intercepted 2 | . . . . . . . . 2 . . Recyclers Shooed . | . . . . . . . . . . . Parts Field Recycled . | . . . . . . . . . . . Retrieved Matter . | . . . . . . . . . . . Parts Self-Destructed . | . . . . . . . . . . . Prevented . | . . . . . . . . . . . Kills | -11 -10 -10 -9 -9 -9 -8 -8 -7 -7 -7 ------- Run | Scr Mat Min Mat Min Exi Min Mat Fac Low Low Combat Hostiles Destroyed 127 | . 8 8 10 6 . . 25 43 14 13 Melee 9 | . . . . . . . . . . 9 Guns 20 | . 7 2 3 4 . . 2 2 . . Cannons 81 | . . 6 7 2 . . 23 30 9 4 AOE 17 | . 1 . . . . . . 11 5 . Classes Destroyed 16 | . 4 2 . 2 . . 4 3 1 . Worker 6 | . . . . . . . 1 5 . . Builder 3 | . 1 . . . . . 1 1 . . Hauler 2 | . . . . . . . . 2 . . Recycler 2 | . 1 . . . . . . 1 . . Operator 5 | . . . . . . . 3 2 . . Watcher 16 | . 3 . 3 . . . 5 5 . . Swarmer 33 | . . 4 4 . . . 9 8 1 7 Grunt 38 | . 8 2 2 1 . . 2 13 6 4 Brawler 4 | . . . . . . . . 3 1 . Duelist 5 | . . . . 1 . . 1 2 1 . Sentry 26 | . . 2 4 . . . 10 7 2 1 Demolisher 1 | . . . . . . . . 1 . . Hunter 3 | . . . . . . . 2 1 . . Programmer 11 | . . . . . . . 1 8 2 . Behemoth 2 | . . . . . . . . . 1 1 Assembled 4 | . . . . 4 . . . . . . Best Kill Streak 8 | . 6 2 3 2 . . 4 8 5 5 Combat Bots Only 5 | . 4 2 2 2 . . 3 4 5 5 Max Kills in Single Turn 5 | . 3 2 1 1 . . 2 5 2 2 Gunslinging . | . . . . . . . . . . . Exploded 2 | . 1 . . . . . . 2 1 . Melee 2 | . . . . . . . . . . 2 Uniques/NPCs Destroyed . | . . . . . . . . . . . Combat | -11 -10 -10 -9 -9 -9 -8 -8 -7 -7 -7 -------- Run | Scr Mat Min Mat Min Exi Min Mat Fac Low Low Damage Taken 5506 | . 319 155 168 134 . . 334 1021 832 2543 Core 828 | . 29 24 . 34 . . 41 39 48 613 Absorbed by Shields . | . . . . . . . . . . . Core Remaining (%) 90 | 100 . 78 . . . 91 92 . . . Volleys Fired 201 | . 28 13 20 13 . . 29 54 23 21 Largest 5 | . 2 2 3 3 . . 2 5 5 3 Hottest 293 | . 60 88 123 118 . . 105 273 293 136 Shots Fired 632 | . 53 26 60 38 . . 118 217 76 44 Gun 170 | . 53 13 20 13 . . 7 53 11 . Cannon 437 | . . 13 40 25 . . 111 148 56 44 Launcher 24 | . . . . . . . . 16 8 . Special 1 | . . . . . . . . . 1 . Kinetic 339 | . 28 13 40 26 . . 83 75 30 44 Thermal 192 | . 9 13 20 12 . . 28 73 37 . Explosive 24 | . . . . . . . . 16 8 . Electromagnetic 76 | . 16 . . . . . 7 53 . . Robot Hit Streak 74 | . 35 16 12 16 . . 74 36 29 19 Robot Miss Streak 3 | . 1 1 1 3 . . 1 3 1 2 Penetration Max . | . . . . . . . . . . . Secondary Targets . | . . . . . . . . . . . Autonomous 118 | . . . . . . . 62 56 . . Shots Hit Robots 540 | . 45 17 39 25 15 . 111 165 54 69 Core Hits 271 | . 23 9 15 13 . . 44 110 37 20 Critical Hits 13 | . . 1 1 . . . 7 2 1 1 Critical Kills 3 | . . 1 . . . . . 1 1 . Critical Parts Destroyed 10 | . . . 1 . . . 7 1 . 1 Melee Attacks 58 | . . . . . 19 . . . . 39 Impact . | . . . . . . . . . . . Slashing 39 | . . . . . . . . . . 39 Piercing . | . . . . . . . . . . . Sneak Attacks 13 | . . . . . 13 . . . . . Combat Hostiles . | . . . . . . . . . . . Follow-up Attacks 13 | . . . . . . . . . . 13 Damage Inflicted 19407 | . 756 290 701 427 . . 5744 7610 1770 2109 Guns 1581 | . 544 86 131 234 . . 68 419 99 . Cannons 13840 | . . 204 570 193 . . 5626 5386 966 895 Explosions 2772 | . 212 . . . . . 50 1805 705 . Melee 1214 | . . . . . . . . . . 1214 Ramming . | . . . . . . . . . . . Kinetic 11953 | . 247 86 309 375 . . 5148 4347 546 895 Thermal 3363 | . 310 204 392 52 . . 478 1408 519 . Explosive 2191 | . . . . . . . 50 1436 705 . Electromagnetic 686 | . 199 . . . . . 68 419 . . Impact . | . . . . . . . . . . . Slashing 1214 | . . . . . . . . . . 1214 Piercing . | . . . . . . . . . . . Highest Corruption 4 | . 2 2 . . . . . 3 4 4 Average Corruption 2 | . 1 2 . . . . . 1 3 2 Corruption Purged 4 | . . . . . . . . . . 4 Effects 76 | . 5 17 . . . . . 28 23 3 Message Errors 19 | . 1 5 . . . . . 7 5 1 Matter Fused 15 | . . . . . . . . 4 11 . Heat Flow Errors 12 | . 2 3 . . . . . 5 2 . Energy Discharges 13 | . 2 4 . . . . . 5 1 1 Data Loss (minor) 11 | . . 4 . . . . . 4 3 . Targeting Errors 6 | . . 1 . . . . . 3 1 1 Overload Shots . | . . . . . . . . . . . Overflow Damage 1930 | . 31 . 1 . . . 764 1039 20 75 Projectiles 1762 | . . . 1 . . . 764 975 13 9 Explosions 102 | . 31 . . . . . . 64 7 . Melee 66 | . . . . . . . . . . 66 Knockbacks 52 | . . . 1 3 . . 12 17 3 16 Impact . | . . . . . . . . . . . Kinetic 50 | . . . 1 3 . . 10 17 3 16 Secondary 2 | . . . . . . . 2 . . . Self-Inflicted Damage 223 | . 31 . . . . . . 97 95 . Shots 15 | . 1 . . . . . . 8 6 . Rammed . | . . . . . . . . . . . Targets Rammed . | . . . . . . . . . . . Kicked . | . . . . . . . . . . . Crushed . | . . . . . . . . . . . Highest Temperature 243 | . 241 164 126 63 . . 2 186 243 132 Average Temperature 61 | . 62 63 34 24 . . 2 77 92 38 Received Heat Transfer 1828 | . 159 72 69 40 . . 108 282 276 822 Siege Activations . | . . . . . . . . . . . Robots Corrupted . | . . . . . . . . . . . Combat Hostiles . | . . . . . . . . . . . Parts Fried 1 | . . . . . . . . 1 . . Impact Corruptions 2 | . . . . . . . 2 . . . Robots Melted . | . . . . . . . . . . . Combat Hostiles . | . . . . . . . . . . . Parts Melted 5 | . . 1 . . . . . 3 1 . Heat Transferred 5733 | . 475 370 703 111 . . 999 2224 851 . Parts Sabotaged . | . . . . . . . . . . . Parts Stolen 5 | . . . . . . . . . 1 4 Parts Stripped . | . . . . . . . . . . . Power Chain Reactions 4 | . 1 . . . . . . 3 . . Missiles Intercepted . | . . . . . . . . . . . Alert | -11 -10 -10 -9 -9 -9 -8 -8 -7 -7 -7 ------- Run | Scr Mat Min Mat Min Exi Min Mat Fac Low Low Peak Influence 572 | . 180 199 201 54 . . 265 572 . . Average Influence 60 | . 56 29 36 10 . . 32 132 . . Maximum Alert Level 2 | . . . 1 . . . 1 2 . . Low Security (%) 90 | 100 100 100 97 100 . 100 95 74 . . Level 1 7 | . . . 2 . . . 4 19 . . Level 2 1 | . . . . . . . . 5 . . Level 3 . | . . . . . . . . . . . Level 4 . | . . . . . . . . . . . Level 5 . | . . . . . . . . . . . High Security . | . . . . . . . . . . . Max Security . | . . . . . . . . . . . Squads Dispatched 14 | . . . . . . . 1 13 . . Investigation 1 | . . . . . . . . 1 . . Extermination 5 | . . . . . . . . 5 . . Reinforcement 3 | . . . . . . . . 3 . . Assault . | . . . . . . . . . . . Garrison 5 | . . . . . . . 1 4 . . Intercept . | . . . . . . . . . . . Construction Impeded 2 | . . . . . . . . 2 . . Haulers Reinforced . | . . . . . . . . . . . Stealth | -11 -10 -10 -9 -9 -9 -8 -8 -7 -7 -7 --------- Run | Scr Mat Min Mat Min Exi Min Mat Fac Low Low Distress Signals 5 | . 1 . 2 . . . 2 . . . Communications Jammed . | . . . . . . . . . . . Distress Signals . | . . . . . . . . . . . Times Spotted 168 | . 17 8 14 10 . . 26 52 13 28 Peak Tracking Total 13 | . 6 2 4 6 . . 3 3 4 13 Tactical Retreats 9 | . 1 . . 3 . . 1 2 . 2 Traps | -11 -10 -10 -9 -9 -9 -8 -8 -7 -7 -7 ------- Run | Scr Mat Min Mat Min Exi Min Mat Fac Low Low Traps Triggered 15 | . 4 . 3 . . . 1 7 . . Indirectly . | . . . . . . . . . . . Trap Hack Attempts . | . . . . . . . . . . . Triggered . | . . . . . . . . . . . Disarmed . | . . . . . . . . . . . Reprogrammed 6 | . . . . . . . 6 . . . Reused 25 | . . . . . . . 4 21 . . Traps Reconfigurated 47 | . . . . . . . . 47 . . Traps Extracted . | . . . . . . . . . . . Installed . | . . . . . . . . . . . Triggered 27 | . . . . . . . 4 21 . 2 Machines | -11 -10 -10 -9 -9 -9 -8 -8 -7 -7 -7 ---------- Run | Scr Mat Min Mat Min Exi Min Mat Fac Low Low Machines Disabled 35 | . 1 1 . 2 . . 4 26 1 . Max in Single Turn 6 | . 1 1 . 1 . . 2 6 1 . Garrison Access 2 | . . . . . . . 1 1 . . Machines Sabotaged . | . . . . . . . . . . . Garrisons Compromised . | . . . . . . . . . . . Overloaded Fab Kills . | . . . . . . . . . . . Fab Network Shutdowns . | . . . . . . . . . . . Hacking | -11 -10 -10 -9 -9 -9 -8 -8 -7 -7 -7 --------- Run | Scr Mat Min Mat Min Exi Min Mat Fac Low Low Machines Accessed 46 | . 7 1 . . 1 . 15 19 2 1 Terminals 29 | . 7 1 . . . . 12 9 . . Fabricators 3 | . . . . . . . . 3 . . Repair Stations 3 | . . . . . . . 1 2 . . Recycling Units 5 | . . . . . . . 1 4 . . Scanalyzers . | . . . . . . . . . . . Garrison Access 2 | . . . . . . . 1 1 . . Total Hacks 132 | . 28 2 . . 1 . 53 38 9 1 Successful 106 | . 20 2 . . 1 . 40 33 9 1 Failed 26 | . 8 . . . . . 13 5 . . Catastrophic 1 | . 1 . . . . . . . . . Database Lockouts . | . . . . . . . . . . . Manual 75 | . 23 3 . . 6 . 28 15 . . Terminals 94 | . 28 2 . . . . 46 18 . . Fabricators 6 | . . . . . . . . 6 . . Repair Stations 6 | . . . . . . . 2 4 . . Recycling Units 10 | . . . . . . . 2 8 . . Scanalyzers . | . . . . . . . . . . . Garrison Access 5 | . . . . . . . 3 2 . . Terminal Hacks 52 | . 13 2 . . 1 . 20 6 9 1 Record 8 | . . . . . . . . . 8 . Part Schematic 1 | . . . . . . . 1 . . . Robot Schematic 1 | . . 1 . . . . . . . . Robot Analysis 1 | . . . . . . . 1 . . . Prototype ID Bank 9 | . 6 . . . . . 3 . . . Open Door 2 | . . . . . . . . . 1 1 Branch Access Points 3 | . . 1 . . . . 1 1 . . Emergency Access Points 1 | . . . . . . . . 1 . . Terminal Index 1 | . . . . . . . . 1 . . Repair Station Index 1 | . . . . . . . . 1 . . Alert Level 2 | . . . . . . . 2 . . . Unreport Threat 6 | . 2 . . . . . 3 1 . . Locate Traps 7 | . 2 . . . . . 4 1 . . Reprogram Traps 1 | . . . . . . . 1 . . . Dispatch Records 1 | . . . . . . . 1 . . . Assault Status 1 | . 1 . . . . . . . . . Zone Layout 5 | . 2 . . . . . 3 . . . EX-Prototype ID Bank 1 | . . . . . 1 . . . . . Fabricator Hacks 6 | . . . . . . . . 6 . . Load Schematic 3 | . . . . . . . . 3 . . Build 3 | . . . . . . . . 3 . . Repair Station Hacks 6 | . . . . . . . 2 4 . . Scan Component 3 | . . . . . . . 1 2 . . Repair 3 | . . . . . . . 1 2 . . Recycling Unit Hacks 8 | . . . . . . . 2 6 . . Process 3 | . . . . . . . 1 2 . . Report Inventory 5 | . . . . . . . 1 4 . . Scanalyzer . | . . . . . . . . . . . Garrison Access Hacks 2 | . . . . . . . 1 1 . . Seal Access 2 | . . . . . . . 1 1 . . Unauthorized Hacks 71 | . 16 . . . . . 33 22 . . Terminals 29 | . 7 . . . . . 13 9 . . Assimilate 2 | . . . . . . . 1 1 . . Botnet 27 | . 7 . . . . . 12 8 . . Fabricators . | . . . . . . . . . . . Repair Stations . | . . . . . . . . . . . Recycling Units . | . . . . . . . . . . . Scanalyzers . | . . . . . . . . . . . Garrison Access 3 | . . . . . . . 2 1 . . Restock 1 | . . . . . . . 1 . . . Reprogram 2 | . . . . . . . 1 1 . . Data Cores Recovered 2 | . . . . . . . 1 1 . . Used 1 | . . . . . . . . 1 . . Hacking Detections 35 | . 6 1 . . . . 14 14 . . Full Trace Events 1 | . . . . . . . 1 . . . Feedback Events . | . . . . . . . . . . . Feedback Blocked . | . . . . . . . . . . . Robot Schematics Acquired 1 | . . 1 . . . . . . . . Robots Built 2 | . . . . . . . . 2 . . Matter 306 | . . . . . . . . 306 . . Time 121 | . . . . . . . . 121 . . Total Robot Build Rating 2 | . . . . . . . . 2 . . Part Schematics Acquired 1 | . . . . . . . 1 . . . Parts Built . | . . . . . . . . . . . Matter . | . . . . . . . . . . . Time . | . . . . . . . . . . . Total Part Build Rating . | . . . . . . . . . . . Parts Repaired 3 | . . . . . . . 1 2 . . Time 55 | . . . . . . . 13 42 . . Parts Recycled . | . . . . . . . . . . . Recycled Matter 442 | . . . . . . . 274 168 . . Retrieved Matter . | . . . . . . . . . . . Retrieved Components . | . . . . . . . . . . . Parts Scanalyzed . | . . . . . . . . . . . Part Schematics Acquired . | . . . . . . . . . . . Parts Damaged . | . . . . . . . . . . . Bothacking | -11 -10 -10 -9 -9 -9 -8 -8 -7 -7 -7 ------------ Run | Scr Mat Min Mat Min Exi Min Mat Fac Low Low Used RIF Installer . | . . . . . . . . . . . Robots Hacked 7 | . . . . . 6 . . . 1 . Non-combat 4 | . . . . . 3 . . . 1 . Combat 3 | . . . . . 3 . . . . . Robot Hacks Applied 10 | . . . . . 9 . . . 1 . parse_system 10 | . . . . . 9 . . . 1 . Relay Couplers Released 8 | . . . . . . . 4 4 . . Programmers 8 | . . . . . . . 4 4 . . Robots Rewired . | . . . . . . . . . . . Allies Hacked . | . . . . . . . . . . . Hacks Repelled . | . . . . . . . . . . . Allies | -11 -10 -10 -9 -9 -9 -8 -8 -7 -7 -7 -------- Run | Scr Mat Min Mat Min Exi Min Mat Fac Low Low Total Allies 11 | . . . . 3 . . 4 4 . . Largest Group 4 | . . . . 2 2 . 4 3 . . Highest-Rated Group 45 | . . . . 41 41 . 25 45 . . Highest-Rated Ally 32 | . . . . 31 31 . 10 32 . . Total Orders 29 | . . . . . . . 8 21 . . STAY 14 | . . . . . . . 5 9 . . FOLLOW 13 | . . . . . . . 3 10 . . TUNNEL 2 | . . . . . . . . 2 . . Ally Attacks 20 | . . . . 3 . . 11 6 . . Total Damage 302 | . . . . 20 . . 53 229 . . Kills 5 | . . . . 1 . . . 4 . . Allies Corrupted . | . . . . . . . . . . . Allies Melted . | . . . . . . . . . . . Intel | -11 -10 -10 -9 -9 -9 -8 -8 -7 -7 -7 ------- Run | Scr Mat Min Mat Min Exi Min Mat Fac Low Low Robot Analysis Total 1 | . . . . . . . 1 . . . Derelict Logs Recovered 3 | . . 1 . . . . . . 2 . Drone Launches . | . . . . . . . . . . . Drone Recoveries . | . . . . . . . . . . . Exploration | -11 -10 -10 -9 -9 -9 -8 -8 -7 -7 -7 ------------- Run | Scr Mat Min Mat Min Exi Min Mat Fac Low Low Turns Passed 21267 | 83 1377 1666 989 937 3111 702 5310 4423 1400 1269 Spaces Moved 9681 | 64 877 804 396 420 1450 328 1874 2209 678 581 Core 14 | 12 . . . . . . . . . 2 Treads 427 | . . . . . . . . . . 427 Legs 9240 | 52 877 804 396 420 1450 328 1874 2209 678 152 Wheels . | . . . . . . . . . . . Hover . | . . . . . . . . . . . Flight . | . . . . . . . . . . . Fastest Speed 50 | 50 120 180 180 210 210 210 220 160 160 160 Average Speed 203 | 106 140 201 210 210 210 210 256 184 190 195 Slowest Speed 1150 | 120 180 210 300 210 240 240 300 250 280 1150 Overloaded Moves . | . . . . . . . . . . . Propulsion Burnouts . | . . . . . . . . . . . Robots Hopped . | . . . . . . . . . . . Cave-ins Triggered . | . . . . . . . . . . . Exploration Rate (%) 71 | 5 95 99 37 82 94 63 97 63 83 66 Regions Visited 10 Branch Regions 6 Pre-discovered Areas 1 | . . 1 . . . . . . . . Known Exits Taken 10 | 1 1 1 1 1 1 1 1 1 1 . Unknown Exits Taken . | . . . . . . . . . . . Scrap Searched 8 | . . 1 . 1 . . . . 3 3 Spaces Dug . | . . . . . . . . . . . Terrain Destroyed 429 | . 2 . . . . . 51 257 116 3 Melee . | . . . . . . . . . . . Projectile 23 | . . . . . . . 4 12 4 3 AOE 406 | . 2 . . . . . 47 245 112 . Actions | -11 -10 -10 -9 -9 -9 -8 -8 -7 -7 -7 --------- Run | Scr Mat Min Mat Min Exi Min Mat Fac Low Low Total 10784 | 75 969 825 504 446 1494 340 2333 2422 724 652 Wait 662 | . 48 2 73 10 5 12 388 112 11 1 Move 9671 | 63 876 803 395 419 1449 327 1873 2208 677 581 Hop . | . . . . . . . . . . . Pick Up 57 | 5 10 2 1 . 5 . 13 13 2 6 Fast Attach 46 | 7 2 . 8 1 3 . 3 9 1 12 Attach 24 | . 1 2 4 2 1 . 2 6 4 2 Detach 9 | . . 1 2 . 1 . 3 1 1 . Swap 24 | . 2 2 . 1 4 1 6 3 2 3 Drop 45 | . 2 . 1 . 7 . 16 16 1 2 Fire 201 | . 28 13 20 13 . . 29 54 23 21 Melee 43 | . . . . . 19 . . . . 24 Ram . | . . . . . . . . . . . Kick . | . . . . . . . . . . . Crush . | . . . . . . . . . . . Escape Stasis . | . . . . . . . . . . . Rewire 2 | . . . . . . . . . 2 . Trap . | . . . . . . . . . . . Miscellaneous . | . . . . . . . . . . . Route ------- -11/Scrapyard -10/Materials (discovered 5 exits: *Mat x3 / *Min x2) -10/Mines (discovered 2 exits: *Mat x2) -9/Materials -9/Mines (discovered 2 exits: *Mat / *Exi) -9/Exiles (discovered 2 exits: *Min x2) -8/Mines -8/Materials (discovered 3 exits: *Fac x3) -7/Factory (discovered 5 exits: *Fac x2 / *Sto / *Low x2) -7/Lower Caves -7/Lower Caves (discovered 1 exit: *Fac) History --------- Turn | Location | Event 3 | -11/Scrapyard | Identified exit to Materials 3 | -11/Scrapyard | Discovered exit to Materials (range 15) 84 | -11/Scrapyard | Entered Materials 84 | -10/Materials | Evolved 1 slot: Utility x1 310 | -10/Materials | Build established: Hacker-Mutant 331 | -10/Materials | Identified exit to Materials 331 | -10/Materials | Discovered exit to Materials (range 8) 668 | -10/Materials | Discovered exit to Materials (range 10) 841 | -10/Materials | Identified exit to Mines 841 | -10/Materials | Discovered exit to Mines (range 9) 877 | -10/Materials | Discovered exit to Materials (range 10) 1147 | -10/Materials | Discovered exit to Mines (range 16) 1461 | -10/Materials | Entered Mines 1498 | -10/Mines | Met a Derelict bent on vengeance 1719 | -10/Mines | Discovered exit to Materials (range 7) 1727 | -10/Mines | Learned location of Storage (-7) 2335 | -10/Mines | Discovered exit to Materials (range 14) 3127 | -10/Mines | Entered Materials 3127 | -9/Materials | Evolved 2 slots: Utility x1, Weapon x1 3128 | -9/Materials | Identified exit to Mines 3426 | -9/Materials | Build established: Hacker-Gunner 4116 | -9/Materials | Entered Mines 4183 | -9/Mines | Assembled infested the area 4188 | -9/Mines | Assisted by a Guerilla fighting off Assembled 4320 | -9/Mines | Identified exit to Materials 4320 | -9/Mines | Discovered exit to Materials (range 10) 4437 | -9/Mines | Received a Mining Laser from a helpful Derelict 4686 | -9/Mines | Found a damaged Exp. Sensor Array with a note attached 4694 | -9/Mines | Found Prototype Device 4694 | -9/Mines | Identified Exp. Sensor Array 4946 | -9/Mines | Deemed a non-threat by the Exiles lab entrance 4949 | -9/Mines | Identified exit to Exiles 4949 | -9/Mines | Discovered exit to Exiles (range 5) 4999 | -9/Mines | Build established: Hacker-Skirmisher 5053 | -9/Mines | Entered Exiles 5053 | -9/Exiles | Accompanied by 2 allies 5054 | -9/Exiles | Identified exit to Mines 5081 | -9/Exiles | Discovered exit to Mines (range 15) 5083 | -9/Exiles | Led the pair of lost Derelicts to a safe place 5104 | -9/Exiles | Met 8R-AWN 5135 | -9/Exiles | Met EX-HEX 5486 | -9/Exiles | Build established: Hacker-Mutant 5577 | -9/Exiles | Met EX-BIN 5600 | -9/Exiles | Aligned with FarCom system 5602 | -9/Exiles | Given EX-Vault access code 5691 | -9/Exiles | Opened EX-Vault 5712 | -9/Exiles | Found Modified TNC 5719 | -9/Exiles | Found AWS/Autocannon 5733 | -9/Exiles | Found Trap Reconfigurator 5801 | -9/Exiles | Warned to stay clear of 0b10 Research branches 6401 | -9/Exiles | Met EX-DEC 6756 | -9/Exiles | Visited The Gauntlet 8164 | -9/Exiles | Stole three prototypes: Modified TNC, Trap Reconfigurator, AWS/Autocannon 8164 | -9/Exiles | Entered Mines 8587 | -8/Mines | Discovered exit to Materials (range 13) 8866 | -8/Mines | Entered Materials 8866 | -8/Materials | Evolved 2 slots: Weapon x2 9781 | -8/Materials | Identified exit to Factory 9781 | -8/Materials | Discovered exit to Factory (range 13) 10340 | -8/Materials | Build established: Hacker-Skirmisher 11136 | -8/Materials | Discovered exit to Factory (range 15) 11905 | -8/Materials | Build established: Hacker-Mutant 12653 | -8/Materials | Build established: Hacker-Skirmisher 12788 | -8/Materials | Discovered exit to Factory (range 8) 13071 | -8/Materials | Build established: Hacker-Mutant 13259 | -8/Materials | Repaired Beam Cannon 13447 | -8/Materials | Garrison activated, responded to threat 13603 | -8/Materials | Build established: Hacker-Skirmisher 14176 | -8/Materials | Entered Factory 14176 | -7/Factory | Accompanied by 1 ally 14176 | -7/Factory | Evolved 2 slots: Propulsion x1, Utility x1 14178 | -7/Factory | FarCom data flow suspended 14251 | -7/Factory | Identified exit to Lower Caves 14251 | -7/Factory | Discovered exit to Lower Caves (range 12) 14475 | -7/Factory | Build established: Hacker-Gunner 14759 | -7/Factory | Fabricated T-07 Excavator? 14895 | -7/Factory | Identified exit to Factory 14895 | -7/Factory | Discovered exit to Factory (range 5) 14971 | -7/Factory | Identified exit to Storage 14971 | -7/Factory | Discovered exit to Storage (range 10) 15309 | -7/Factory | Fabricated T-07 Excavator? 17177 | -7/Factory | Garrison activated, responded to threat 17285 | -7/Factory | Repaired Beam Cannon 17574 | -7/Factory | Repaired Hvy. EM Pulse Gun 17595 | -7/Factory | Discovered exit to Factory (range 7) 17610 | -7/Factory | Found Prototype Launcher 17610 | -7/Factory | Identified Rocket Array 18599 | -7/Factory | Entered Lower Caves 18607 | -7/Lower Caves | Learned Factory interactive machine intel 19102 | -7/Lower Caves | Attracted the attention of an 0b10 checkpoint 19137 | -7/Lower Caves | Learned Factory non-interactive machine intel 19187 | -7/Lower Caves | Spotted B-75 Beast 19193 | -7/Lower Caves | Destroyed B-75 Beast 19463 | -7/Lower Caves | Lost 5 parts (2n3w) 19474 | -7/Lower Caves | Learned Factory security intel 19474 | -7/Lower Caves | Learned Research garrison access intel 19474 | -7/Lower Caves | Learned location of 1 exit from Factory 19555 | -7/Lower Caves | Identified exit to Lower Caves 19555 | -7/Lower Caves | Discovered exit to Lower Caves (range 14) 19728 | -7/Lower Caves | Build established: Hacker-Mutant 19804 | -7/Lower Caves | Spotted I6-FA7(f) 19805 | -7/Lower Caves | Encountered a Master Thief 19806 | -7/Lower Caves | Trap Reconfigurator stolen by Master Thief 19999 | -7/Lower Caves | Entered another Lower Caves area 20128 | -7/Lower Caves | Discovered exit to Factory (range 9) 20209 | -7/Lower Caves | Spotted B-75 Beast 20344 | -7/Lower Caves | Lost 3 parts (1p1u1w) 20399 | -7/Lower Caves | Spotted 11-0I4(f) 20401 | -7/Lower Caves | Encountered a Master Thief 20434 | -7/Lower Caves | System Backup Module stolen by Master Thief 20600 | -7/Lower Caves | Spotted JX-IS7(f) 20601 | -7/Lower Caves | Encountered a Master Thief 20619 | -7/Lower Caves | Mak. Axe stolen by Master Thief 20683 | -7/Lower Caves | Destroyed B-75 Beast 20778 | -7/Lower Caves | Attracted the attention of an 0b10 checkpoint 21010 | -7/Lower Caves | Encountered a Warlord checkpoint 21115 | -7/Lower Caves | Spotted 9P-LW7(f) 21116 | -7/Lower Caves | Encountered a Master Thief 21118 | -7/Lower Caves | Spotted 2I-KIH(f) 21119 | -7/Lower Caves | Encountered a Master Thief 21121 | -7/Lower Caves | Lyr. Medium Armor Plating stolen by Master Thief 21138 | -7/Lower Caves | Imp. Medium Treads stolen by Master Thief 21247 | -7/Lower Caves | Core integrity fell below 50% 21249 | -7/Lower Caves | Attracted the attention of an 0b10 base 21261 | -7/Lower Caves | Core integrity fell below 20% 21268 | -7/Lower Caves | Destroyed by G-47 Trooper with Particle Gun Last Messages --------------- 21244_ Mak. Hacking Suite destroyed. 21244_ G-47 Trooper destroyed. 21246_ Penetrated by Slug. 21246_ Aluminum Leg destroyed. 21246_ Machine disabled. 21248_ Mak. Sword destroyed. 21249_ Acquired Aluminum Leg. 21249_ Mak. Axe destroyed. 21251_ Penetrated by Slug. 21252_ G-47 Trooper destroyed. 21254_ Rnf. Deuterium Engine destroyed. 21254_ Penetrated by Slug. 21254_ Aluminum Leg destroyed. 21257_ Mak. Axe destroyed. 21257_ Slug penetrates S-27 Virus. 21257_ Slug penetrates Wall. 21257_ Mak. Sword destroyed. 21260_ Penetrated by Slug. 21262_ S-27 Virus destroyed. 21265_ Penetrated by Slug. Map ----- +----------------------------------------------------+ | | | | | | | | | | | | | ?????????????????????????????????????????????? | | ?????????????????????????????????????????????? | | ?????????????????????????????????????????????? | | ?????????????????????????????????????????????? | | ?????????????????????????????????????????????? | | ?????????????????????????????????????????????? | | ?????????????????###????###??????????????????? | | ?????????????????" ???? "??????????????????? | | ?????????????????" T??????????????????? | | ?????????????????" """" ""?????????????????? | | ?????????????????" """" "??????????????????? | | ???????????????### """" #??????????????????? | | ???????????????? + ???????????????????? | | ??????????????+??#" "???+???????????????? | | ??????????????+ ?#" ??? +???????????????? | | ??????????????# ?? $ ??? #???????????????? | | ???????????# # ####/g#### #???????????????? | | ???????????# ; Y%!%g% #???????????????? | | ??????????????# =%=% ** g #???????????????? | | ??????????????# " "s @ =% Y" #???????????????? | | ??????????????#"""""s [" ""#???????????????? | | ???????????# ######///;###### #????????????? | | ???????????# #????????????? | | ???????????# #????????????? | | ???????????###### ### #########????????????? | | ????????????????# ??# #????????????????????? | | ????????????????# ??# #?###????????????????? | | ????????????????# ### ## ##???????????????? | | ????????????????# # ## ##??????????????? | | ????????????????# # ####???????????# | | ????????????????# #?????#?????# | | ????????????????## " #?????# ????# | | ?????????????????## """" #?????# #???# | | ??????????????????#### " #???### #??? | | ?????????????????????### " #??## ^### | | ???????????????????????## """ #### ^ *&%& | | ????????????????????????# """" & | | ????????????????????????# "" ???# | | ????????????????????????# ##?????????# | | ????????????????????????# #??????????## | | ????????????????????????# ###??????????# | | ????????????????????????## ####???????????## | | ?????????????????????????# #####??######?## | | ?????????????????????????# ## #### ### # | +----------------------------------------------------+ Best States ------------- Heat Dissipation 61 Energy Generation 16 Energy Capacity 290 Matter Stores 300 Matter Capacity 300 Sight Range 16 Robot Scan Range 30 Terrain Scan Density 10 Armor Coverage 225 Resistance: KI 35 Resistance: TH 35 Resistance: EX 35 Resistance: EM 35 Resistance: I 35 Resistance: S 35 Resistance: P 35 Evasion (%) 40 Targeting Accuracy 6 Recoil Reduction 3 Offensive Hacking 41 Item Schematics ----------------- Carbon-fiber Leg | -8/Materials | Hacked Robot Schematics ------------------ T-07 Excavator | -10/Mines | Hacked Fabricated ------------ T-07 Excavator | x1 | -7/Factory T-07 Excavator | x1 | -7/Factory Alien Tech Used ----------------- None Achievements -------------- Ambidextrous Challenges ------------ None Game ------ Seed SwarmCryofiberMicroactuators Manual? 0 Play Time 02:15:49 Cumulative 154.7 hours Start 2020.04.12 @ 13:22:34 End 2020.04.12 @ 16:22:39 Sessions 3 Manual Loads 0 Difficulty Explorer Special Mode None Game No. 98 Rogue 74 Adventurer 0 Explorer 24 Win Type - Total 4 Types 4/0/0/0/0/0/0 Lore% 59 Gallery% 63 Achievement% 56 Wizard Run 0 Options --------- ASCII 0 Keyboard 1 Movement Vi Keybinds 0 Fullscreen 1 Font 18/Terminus Map View 76x50 Tactical HUD 1 Map Filters NONE Filters LOW_CONTRAST(47,30,31) Steam 1 RUN: 7175a200-c3b8-435a-baa6-da8e09fa4d26